[Event "Live Chess"]
[Site "Chess.com"]
[Date "2024.06.02"]
[Round "-"]
[White "McFim"]
[Black "gmnorfolk"]
[Result "1-0"]
[WhiteElo "1734"]
[BlackElo "2132"]
[TimeControl "300"]
[EndTime "5:50:02 PDT"]
[Termination "McFim won by resignation"]

1. e4 {[%clk 0:04:58.3]} 1... c5 {[%clk 0:04:58.6]} 2. Nf3 {[%clk 0:04:57.1]}
2... d6 {[%clk 0:04:57.4]} 3. Bb5+ {[%clk 0:04:56.2]} 3... Bd7 {[%clk
0:04:54.9]} 4. a4 {[%clk 0:04:54.8]} 4... Nf6 {[%clk 0:04:50.9]} 5. d3 {[%clk
0:04:53.6]} 5... a6 {[%clk 0:04:49]} 6. Bxd7+ {[%clk 0:04:51.8]} 6... Nbxd7
{[%clk 0:04:48.8]} 7. Nc3 {[%clk 0:04:50]} 7... g6 {[%clk 0:04:48.3]} 8. O-O
{[%clk 0:04:48.1]} 8... Bg7 {[%clk 0:04:47.9]} 9. h3 {[%clk 0:04:47.3]} 9... O-O
{[%clk 0:04:47.4]} 10. Bd2 {[%clk 0:04:45.4]} 10... Rb8 {[%clk 0:04:43.2]} 11.
a5 {[%clk 0:04:43.3]} 11... b5 {[%clk 0:04:42.1]} 12. axb6 {[%clk 0:04:42]}
12... Qxb6 {[%clk 0:04:40.8]} 13. b3 {[%clk 0:04:39.2]} 13... Rfe8 {[%clk
0:04:31.4]} 14. Ra2 {[%clk 0:04:28.2]} 14... Qc6 {[%clk 0:04:25.3]} 15. Qe1
{[%clk 0:04:20.1]} 15... e5 {[%clk 0:04:15.4]} 16. Qe2 {[%clk 0:04:16.8]} 16...
Ra8 {[%clk 0:04:09.6]} 17. Rfa1 {[%clk 0:04:14.3]} 17... d5 {[%clk 0:04:08.3]}
18. exd5 {[%clk 0:04:09.9]} 18... Nxd5 {[%clk 0:04:06.8]} 19. Nxd5 {[%clk
0:03:50.8]} 19... Qxd5 {[%clk 0:04:05.4]} 20. Rxa6 {[%clk 0:03:29.8]} 20... Rxa6
{[%clk 0:03:43.3]} 21. Rxa6 {[%clk 0:03:27.6]} 21... h6 {[%clk 0:03:39.8]} 22.
Bc3 {[%clk 0:02:55.7]} 22... e4 {[%clk 0:03:35]} 23. Bxg7 {[%clk 0:02:52.4]}
23... Kxg7 {[%clk 0:03:28.4]} 24. Nd2 {[%clk 0:02:48]} 24... exd3 {[%clk
0:03:21.3]} 25. Qxe8 {[%clk 0:02:44.5]} 25... dxc2 {[%clk 0:03:19.6]} 26. Qe1
{[%clk 0:02:39.7]} 26... Ne5 {[%clk 0:03:08]} 27. Ra1 {[%clk 0:02:20.3]} 27...
Nd3 {[%clk 0:03:00.7]} 28. Qe3 {[%clk 0:02:00.7]} 28... Qd4 {[%clk 0:02:47.6]}
29. Qxd4+ {[%clk 0:01:40]} 29... cxd4 {[%clk 0:02:44.4]} 30. b4 {[%clk 0:01:38]}
30... c1=Q+ {[%clk 0:02:27.8]} 31. Rxc1 {[%clk 0:01:36]} 31... Nxc1 {[%clk
0:02:27.7]} 32. b5 {[%clk 0:01:33.2]} 32... Ne2+ {[%clk 0:02:16.3]} 33. Kf1
{[%clk 0:01:31.6]} 33... Nc3 {[%clk 0:02:15.5]} 34. b6 {[%clk 0:01:29.1]} 1-0

[Event "Live Chess"]
[Site "Chess.com"]
[Date "2024.06.02"]
[Round "-"]
[White "Andriy_Yaremovych"]
[Black "ukraineZelensky"]
[Result "1-0"]
[WhiteElo "1664"]
[BlackElo "1366"]
[TimeControl "300"]
[EndTime "5:50:04 PDT"]
[Termination "Andriy_Yaremovych won by resignation"]

1. e4 {[%clk 0:04:58.3]} 1... e5 {[%clk 0:04:58]} 2. Nc3 {[%clk 0:04:56.7]} 2...
Nf6 {[%clk 0:04:55.7]} 3. f4 {[%clk 0:04:55.8]} 3... d6 {[%clk 0:04:51.7]} 4.
Nf3 {[%clk 0:04:54.1]} 4... exf4 {[%clk 0:04:49.5]} 5. d4 {[%clk 0:04:52.7]}
5... Be7 {[%clk 0:04:46.4]} 6. Bxf4 {[%clk 0:04:50.9]} 6... O-O {[%clk
0:04:40.9]} 7. Qd2 {[%clk 0:04:49.8]} 7... a6 {[%clk 0:04:36.2]} 8. O-O-O {[%clk
0:04:48.4]} 8... b5 {[%clk 0:04:22.5]} 9. Kb1 {[%clk 0:04:46.4]} 9... Nbd7
{[%clk 0:04:19.6]} 10. Bd3 {[%clk 0:04:44.3]} 10... c5 {[%clk 0:04:14.2]} 11. e5
{[%clk 0:04:38.9]} 11... dxe5 {[%clk 0:04:12.2]} 12. dxe5 {[%clk 0:04:36.2]}
12... Ng4 {[%clk 0:03:54.8]} 13. Qe2 {[%clk 0:04:24.8]} 13... c4 {[%clk
0:03:44.1]} 14. Bf5 {[%clk 0:04:21.4]} 14... Ngxe5 {[%clk 0:03:06.9]} 15. Nxe5
{[%clk 0:04:16.5]} 15... Bf6 {[%clk 0:02:57.2]} 16. Nxd7 {[%clk 0:04:14.2]}
16... Bxd7 {[%clk 0:02:55.3]} 17. Rxd7 {[%clk 0:04:12.5]} 17... Qb6 {[%clk
0:02:48.4]} 18. Bd2 {[%clk 0:04:03.8]} 18... Ra7 {[%clk 0:02:32.5]} 19. Rxa7
{[%clk 0:03:59.8]} 19... Qxa7 {[%clk 0:02:30.3]} 20. Rf1 {[%clk 0:03:55.6]}
20... Qb6 {[%clk 0:02:19.7]} 21. Nd5 {[%clk 0:03:52.3]} 21... Qd6 {[%clk
0:02:12]} 22. Nxf6+ {[%clk 0:03:50.3]} 22... Qxf6 {[%clk 0:02:10.1]} 23. Bxh7+
{[%clk 0:03:49.4]} 1-0

[Event "Live Chess"]
[Site "Chess.com"]
[Date "2024.06.02"]
[Round "-"]
[White "GwaryTek"]
[Black "Pablo_dmp"]
[Result "1-0"]
[WhiteElo "1872"]
[BlackElo "1995"]
[TimeControl "300"]
[EndTime "5:50:07 PDT"]
[Termination "GwaryTek won by checkmate"]

1. d3 {[%clk 0:04:54.6]} 1... c5 {[%clk 0:04:59.9]} 2. Nf3 {[%clk 0:04:52.3]}
2... Nf6 {[%clk 0:04:59.8]} 3. g3 {[%clk 0:04:51]} 3... d5 {[%clk 0:04:59.6]} 4.
Bg2 {[%clk 0:04:50.6]} 4... Nc6 {[%clk 0:04:59.5]} 5. O-O {[%clk 0:04:49.7]}
5... e5 {[%clk 0:04:59]} 6. Nbd2 {[%clk 0:04:48.3]} 6... Bd6 {[%clk 0:04:58.9]}
7. h3 {[%clk 0:04:47]} 7... O-O {[%clk 0:04:58.2]} 8. e3 {[%clk 0:04:46.1]} 8...
Re8 {[%clk 0:04:57.2]} 9. c4 {[%clk 0:04:43.5]} 9... Be6 {[%clk 0:04:57.1]} 10.
cxd5 {[%clk 0:04:41.7]} 10... Nxd5 {[%clk 0:04:57]} 11. a3 {[%clk 0:04:39.9]}
11... Qd7 {[%clk 0:04:55.4]} 12. Re1 {[%clk 0:04:37.6]} 12... Bxh3 {[%clk
0:04:54.1]} 13. Qb3 {[%clk 0:04:11.7]} 13... Bxg2 {[%clk 0:04:46.2]} 14. Kxg2
{[%clk 0:04:11.6]} 14... Nf6 {[%clk 0:04:43.8]} 15. Rh1 {[%clk 0:03:58.7]} 15...
a6 {[%clk 0:04:38.5]} 16. Nc4 {[%clk 0:03:45.2]} 16... Bc7 {[%clk 0:04:30.5]}
17. a4 {[%clk 0:03:30]} 17... Nb4 {[%clk 0:04:23.5]} 18. Rd1 {[%clk 0:03:14.5]}
18... Rad8 {[%clk 0:04:09.3]} 19. d4 {[%clk 0:02:29.1]} 19... exd4 {[%clk
0:04:04.8]} 20. exd4 {[%clk 0:02:26.4]} 20... Qg4 {[%clk 0:04:01.5]} 21. Bg5
{[%clk 0:02:06.7]} 21... b6 {[%clk 0:03:42.7]} 22. Bxf6 {[%clk 0:01:56.5]} 22...
gxf6 {[%clk 0:03:42.6]} 23. dxc5 {[%clk 0:01:51.2]} 23... bxc5 {[%clk
0:03:42.5]} 24. Ne3 {[%clk 0:01:44.7]} 24... Rxe3 {[%clk 0:03:35]} 25. Qxe3
{[%clk 0:01:37.9]} 25... Rxd1 {[%clk 0:03:30.4]} 26. Rxd1 {[%clk 0:01:34.6]}
26... Be5 {[%clk 0:03:25.5]} 27. Rd8+ {[%clk 0:01:11.8]} 27... Kg7 {[%clk
0:03:24.5]} 28. Nxe5 {[%clk 0:01:09.8]} 28... fxe5 {[%clk 0:03:24.4]} 29. Qxe5+
{[%clk 0:01:06.6]} 29... f6 {[%clk 0:03:21.1]} 30. Qe7+ {[%clk 0:00:59.3]} 30...
Kh6 {[%clk 0:03:18.5]} 31. Qxf6+ {[%clk 0:00:57]} 31... Qg6 {[%clk 0:03:17]} 32.
Qf4+ {[%clk 0:00:35.4]} 32... Kg7 {[%clk 0:03:13.2]} 33. Qf8# {[%clk 0:00:31.3]}
1-0

[Event "Live Chess"]
[Site "Chess.com"]
[Date "2024.06.02"]
[Round "-"]
[White "MagnersCarlsberg2870"]
[Black "missedJariChance"]
[Result "0-1"]
[WhiteElo "1737"]
[BlackElo "1389"]
[TimeControl "300"]
[EndTime "5:50:09 PDT"]
[Termination "missedJariChance won by resignation"]

1. Nf3 {[%clk 0:04:56.9]} 1... e6 {[%clk 0:04:56.1]} 2. e4 {[%clk 0:04:52.1]}
2... c5 {[%clk 0:04:51.9]} 3. d4 {[%clk 0:04:50.5]} 3... cxd4 {[%clk 0:04:49.5]}
4. Nxd4 {[%clk 0:04:49.4]} 4... Nc6 {[%clk 0:04:48.4]} 5. Be3 {[%clk 0:04:46.5]}
5... Nf6 {[%clk 0:04:43]} 6. Nc3 {[%clk 0:04:44]} 6... a6 {[%clk 0:04:40.4]} 7.
a4 {[%clk 0:04:41.5]} 7... Be7 {[%clk 0:04:38.4]} 8. Bd3 {[%clk 0:04:40.2]} 8...
Qc7 {[%clk 0:04:35.4]} 9. Kf1 {[%clk 0:04:36.9]} 9... O-O {[%clk 0:04:29.8]} 10.
h4 {[%clk 0:04:35.7]} 10... Rd8 {[%clk 0:04:00.9]} 11. h5 {[%clk 0:04:33.7]}
11... h6 {[%clk 0:03:58.1]} 12. Qd2 {[%clk 0:04:29.4]} 12... Nxd4 {[%clk
0:03:51]} 13. Bxd4 {[%clk 0:04:27.5]} 13... d5 {[%clk 0:03:39.8]} 14. e5 {[%clk
0:04:22]} 14... Ne4 {[%clk 0:03:31.3]} 15. Bxe4 {[%clk 0:04:18.1]} 15... dxe4
{[%clk 0:03:25.1]} 16. Nxe4 {[%clk 0:04:17]} 16... Bd7 {[%clk 0:02:49.8]} 17. c3
{[%clk 0:04:13.7]} 17... Bc6 {[%clk 0:02:47.3]} 18. Re1 {[%clk 0:04:01.7]} 18...
Bxe4 {[%clk 0:02:41.8]} 19. Rxe4 {[%clk 0:04:00.3]} 19... Bg5 {[%clk 0:02:40.3]}
20. f4 {[%clk 0:03:57.6]} 20... Qc4+ {[%clk 0:02:26.4]} 21. Kg1 {[%clk
0:03:54.7]} 21... Be7 {[%clk 0:02:24.8]} 22. g4 {[%clk 0:03:52.2]} 22... Bc5
{[%clk 0:02:20.7]} 23. g5 {[%clk 0:03:45.1]} 23... Bxd4+ {[%clk 0:02:16.1]} 24.
Rxd4 {[%clk 0:03:37.6]} 24... Rxd4 {[%clk 0:02:14.1]} 25. cxd4 {[%clk
0:03:31.7]} 25... Rd8 {[%clk 0:02:07.3]} 26. gxh6 {[%clk 0:03:25.2]} 26... Rxd4
{[%clk 0:02:04.2]} 27. h7+ {[%clk 0:03:24]} 27... Kxh7 {[%clk 0:01:56.4]} 28.
Qg2 {[%clk 0:03:14]} 28... Rd1+ {[%clk 0:01:44.9]} 29. Kh2 {[%clk 0:03:12.1]}
29... Qxf4+ {[%clk 0:01:43.4]} 30. Kh3 {[%clk 0:03:08.8]} 30... Rd3+ {[%clk
0:01:31.5]} 0-1

[Event "Live Chess"]
[Site "Chess.com"]
[Date "2024.06.02"]
[Round "-"]
[White "Mary_cool"]
[Black "Victor_Bondar"]
[Result "0-1"]
[WhiteElo "1951"]
[BlackElo "1472"]
[TimeControl "300"]
[EndTime "5:50:31 PDT"]
[Termination "Victor_Bondar won on time"]

1. d4 {[%clk 0:04:55.5]} 1... Nf6 {[%clk 0:04:58.1]} 2. c4 {[%clk 0:04:52.6]}
2... e5 {[%clk 0:04:54.1]} 3. dxe5 {[%clk 0:04:49]} 3... Ng4 {[%clk 0:04:49.5]}
4. Nf3 {[%clk 0:04:37.6]} 4... Nc6 {[%clk 0:04:48.4]} 5. e3 {[%clk 0:04:13.9]}
5... Ngxe5 {[%clk 0:04:34.6]} 6. Be2 {[%clk 0:04:05]} 6... Bb4+ {[%clk 0:04:32]}
7. Nbd2 {[%clk 0:03:40.1]} 7... Qe7 {[%clk 0:04:18.2]} 8. O-O {[%clk 0:03:35.2]}
8... Bc5 {[%clk 0:04:09.7]} 9. a3 {[%clk 0:03:23.8]} 9... a5 {[%clk 0:04:05.1]}
10. b3 {[%clk 0:03:22.9]} 10... d6 {[%clk 0:04:00.5]} 11. Bb2 {[%clk 0:03:21.3]}
11... O-O {[%clk 0:03:54.3]} 12. Ne4 {[%clk 0:03:19.5]} 12... Nxc4 {[%clk
0:03:41.7]} 13. Nf6+ {[%clk 0:03:01.9]} 13... gxf6 {[%clk 0:03:37.2]} 14. Bxc4
{[%clk 0:02:37.7]} 14... Ne5 {[%clk 0:03:33.1]} 15. Nd4 {[%clk 0:02:22.8]} 15...
Nxc4 {[%clk 0:03:23.9]} 16. bxc4 {[%clk 0:02:21.3]} 16... Qe4 {[%clk 0:03:08.6]}
17. Nb5 {[%clk 0:02:01.9]} 17... Bb6 {[%clk 0:02:48.7]} 18. Bxf6 {[%clk
0:01:58.1]} 18... Qg6 {[%clk 0:02:42.9]} 19. Bb2 {[%clk 0:01:48.2]} 19... Bg4
{[%clk 0:02:34]} 20. Qd2 {[%clk 0:01:04.7]} 20... Bh3 {[%clk 0:02:29.6]} 21. g3
{[%clk 0:00:58.6]} 21... Bxf1 {[%clk 0:02:00.5]} 22. Rxf1 {[%clk 0:00:57.1]}
22... Rfe8 {[%clk 0:01:39.7]} 23. Qc3 {[%clk 0:00:51.6]} 23... f6 {[%clk
0:01:24.7]} 24. Rd1 {[%clk 0:00:28.2]} 24... Kf7 {[%clk 0:01:17.3]} 25. Nxd6+
{[%clk 0:00:18.5]} 25... cxd6 {[%clk 0:01:13.5]} 26. Rxd6 {[%clk 0:00:17.5]}
26... Bd8 {[%clk 0:01:03]} 27. c5 {[%clk 0:00:14.6]} 27... Be7 {[%clk
0:01:01.4]} 28. Qc4+ {[%clk 0:00:13.1]} 28... Kf8 {[%clk 0:00:56.7]} 29. Re6
{[%clk 0:00:07.9]} 29... Qb1+ {[%clk 0:00:51]} 30. Bc1 {[%clk 0:00:06.9]} 30...
Rad8 {[%clk 0:00:43.3]} 31. Kg2 {[%clk 0:00:05.6]} 31... Qf5 {[%clk 0:00:34.8]}
32. e4 {[%clk 0:00:03.4]} 32... Qg6 {[%clk 0:00:30.8]} 33. f4 {[%clk 0:00:00.4]}
33... Rd1 {[%clk 0:00:26.1]} 0-1

[Event "Live Chess"]
[Site "Chess.com"]
[Date "2024.06.02"]
[Round "-"]
[White "IgorSchukin"]
[Black "PETROMICH1967"]
[Result "1-0"]
[WhiteElo "1777"]
[BlackElo "1351"]
[TimeControl "300"]
[EndTime "5:50:42 PDT"]
[Termination "IgorSchukin won on time"]

1. e4 {[%clk 0:04:58.5]} 1... e5 {[%clk 0:04:56.3]} 2. Nf3 {[%clk 0:04:57.5]}
2... Nc6 {[%clk 0:04:55.5]} 3. Nc3 {[%clk 0:04:56.6]} 3... Nf6 {[%clk 0:04:53]}
4. d4 {[%clk 0:04:55.7]} 4... exd4 {[%clk 0:04:50.1]} 5. Nxd4 {[%clk 0:04:55.3]}
5... d6 {[%clk 0:04:46.5]} 6. Bg5 {[%clk 0:04:52.2]} 6... Be7 {[%clk 0:04:42.9]}
7. Bb5 {[%clk 0:04:50.7]} 7... Bd7 {[%clk 0:04:39]} 8. Bxc6 {[%clk 0:04:48.7]}
8... bxc6 {[%clk 0:04:36.2]} 9. O-O {[%clk 0:04:45.8]} 9... O-O {[%clk
0:04:33.7]} 10. Qd3 {[%clk 0:04:41.3]} 10... h6 {[%clk 0:04:31.4]} 11. Bh4
{[%clk 0:04:36.6]} 11... g5 {[%clk 0:04:30.5]} 12. Bg3 {[%clk 0:04:35]} 12...
Nh5 {[%clk 0:04:29]} 13. f4 {[%clk 0:04:28.6]} 13... Nxf4 {[%clk 0:04:14.9]} 14.
Bxf4 {[%clk 0:04:26.9]} 14... gxf4 {[%clk 0:04:14.1]} 15. Rxf4 {[%clk
0:04:25.8]} 15... Bg5 {[%clk 0:04:13.4]} 16. Qg3 {[%clk 0:04:22.7]} 16... Kh7
{[%clk 0:04:04.3]} 17. Rf3 {[%clk 0:03:57.6]} 17... c5 {[%clk 0:03:39.8]} 18.
Nf5 {[%clk 0:03:54.9]} 18... Bxf5 {[%clk 0:03:27.6]} 19. Rxf5 {[%clk 0:03:52.8]}
19... c6 {[%clk 0:03:18.7]} 20. Raf1 {[%clk 0:03:48.5]} 20... Qe7 {[%clk
0:03:12.8]} 21. Qf3 {[%clk 0:03:36.4]} 21... d5 {[%clk 0:02:53.4]} 22. exd5
{[%clk 0:02:57.2]} 22... Qe3+ {[%clk 0:02:48.9]} 23. Qxe3 {[%clk 0:02:52.2]}
23... Bxe3+ {[%clk 0:02:45.8]} 24. Kh1 {[%clk 0:02:51.1]} 24... cxd5 {[%clk
0:02:38.5]} 25. Nxd5 {[%clk 0:02:47.6]} 25... Bg5 {[%clk 0:02:32.6]} 26. Rxf7+
{[%clk 0:02:41]} 26... Rxf7 {[%clk 0:02:29.3]} 27. Rxf7+ {[%clk 0:02:40.4]}
27... Kg6 {[%clk 0:02:28]} 28. Rc7 {[%clk 0:02:33.4]} 28... Re8 {[%clk
0:02:19.8]} 29. h4 {[%clk 0:02:06.5]} 29... Re1+ {[%clk 0:02:15.1]} 30. Kh2
{[%clk 0:02:05.1]} 30... Bc1 {[%clk 0:02:08.8]} 31. Rxc5 {[%clk 0:01:59.3]}
31... Bxb2 {[%clk 0:02:06.4]} 32. Nf4+ {[%clk 0:01:51]} 32... Kf6 {[%clk
0:01:55.1]} 33. Nd3 {[%clk 0:01:49.5]} 33... Rb1 {[%clk 0:01:48.4]} 34. Rb5
{[%clk 0:01:42.1]} 34... Be5+ {[%clk 0:01:37.3]} 35. Rxe5 {[%clk 0:01:40.9]}
35... Ra1 {[%clk 0:01:35.2]} 36. Ra5 {[%clk 0:01:37.6]} 36... Rc1 {[%clk
0:01:33.3]} 37. Nb4 {[%clk 0:01:28.8]} 37... Rb1 {[%clk 0:01:30.6]} 38. a3
{[%clk 0:01:27.4]} 38... Rb2 {[%clk 0:01:28.2]} 39. Rxa7 {[%clk 0:01:24.7]}
39... Kf5 {[%clk 0:01:26.5]} 40. Ra5+ {[%clk 0:01:17.4]} 40... Kg4 {[%clk
0:01:23.9]} 41. h5 {[%clk 0:01:13.2]} 41... Kh4 {[%clk 0:01:18.9]} 42. g3+
{[%clk 0:01:04.5]} 42... Kg4 {[%clk 0:01:14.7]} 43. Rc5 {[%clk 0:00:49]} 43...
Rb1 {[%clk 0:01:10.7]} 44. Nd5 {[%clk 0:00:42.2]} 44... Ra1 {[%clk 0:00:57.7]}
45. Rc4+ {[%clk 0:00:27.7]} 45... Kxh5 {[%clk 0:00:54.8]} 46. Nf4+ {[%clk
0:00:26.3]} 46... Kg5 {[%clk 0:00:50.2]} 47. Kg2 {[%clk 0:00:19.6]} 47... Rxa3
{[%clk 0:00:45.3]} 48. c3 {[%clk 0:00:16.8]} 48... Ra2+ {[%clk 0:00:42.7]} 49.
Kf3 {[%clk 0:00:15.9]} 49... Ra1 {[%clk 0:00:40.9]} 50. Rc5+ {[%clk 0:00:14.9]}
50... Kf6 {[%clk 0:00:37.4]} 51. Kg4 {[%clk 0:00:13.8]} 51... Rg1 {[%clk
0:00:33.5]} 52. c4 {[%clk 0:00:12]} 52... h5+ {[%clk 0:00:29.2]} 53. Nxh5+
{[%clk 0:00:10.6]} 53... Kg6 {[%clk 0:00:26.6]} 54. Rc6+ {[%clk 0:00:08.8]}
54... Kh7 {[%clk 0:00:21.8]} 55. c5 {[%clk 0:00:07.6]} 55... Rg2 {[%clk
0:00:15.9]} 56. Rc7+ {[%clk 0:00:06.6]} 56... Kg6 {[%clk 0:00:13.2]} 57. Rg7+
{[%clk 0:00:04.9]} 57... Kh6 {[%clk 0:00:06.8]} 58. c6 {[%clk 0:00:03.3]} 58...
Rxg3+ {[%clk 0:00:04.7]} 59. Kxg3 {[%clk 0:00:01.2]} 59... Kxh5 {[%clk
0:00:01.9]} 60. c7 {[%clk 0:00:00.6]} 1-0

[Event "Live Chess"]
[Site "Chess.com"]
[Date "2024.06.02"]
[Round "-"]
[White "Konovka_Ukraine"]
[Black "gobbles19"]
[Result "1/2-1/2"]
[WhiteElo "1733"]
[BlackElo "2247"]
[TimeControl "300"]
[EndTime "5:51:00 PDT"]
[Termination "Game drawn by agreement"]

1. b4 {[%clk 0:04:57.1]} 1... e5 {[%clk 0:04:54.4]} 2. Bb2 {[%clk 0:04:55.5]}
2... Bxb4 {[%clk 0:04:52.9]} 3. Bxe5 {[%clk 0:04:53.5]} 3... Nf6 {[%clk
0:04:50.8]} 4. Nc3 {[%clk 0:04:51.1]} 4... Nc6 {[%clk 0:04:42.2]} 5. Bxf6 {[%clk
0:04:47.4]} 5... Qxf6 {[%clk 0:04:40.7]} 6. Nd5 {[%clk 0:04:46.9]} 6... Qd8
{[%clk 0:04:39.1]} 7. Nxb4 {[%clk 0:04:45.4]} 7... Nxb4 {[%clk 0:04:39]} 8. Nf3
{[%clk 0:04:44.9]} 8... d5 {[%clk 0:04:35.2]} 9. e3 {[%clk 0:04:42.7]} 9... O-O
{[%clk 0:04:33.4]} 10. Be2 {[%clk 0:04:39.5]} 10... c5 {[%clk 0:04:29.8]} 11.
O-O {[%clk 0:04:37]} 11... Bf5 {[%clk 0:04:23.7]} 12. d3 {[%clk 0:04:33.8]}
12... Re8 {[%clk 0:04:19.2]} 13. a3 {[%clk 0:04:30]} 13... Nc6 {[%clk
0:04:17.4]} 14. Rb1 {[%clk 0:04:27.8]} 14... Rb8 {[%clk 0:04:12.6]} 15. h3
{[%clk 0:04:25.8]} 15... a6 {[%clk 0:04:06.3]} 16. Nd2 {[%clk 0:04:23.9]} 16...
Qe7 {[%clk 0:03:52.8]} 17. Bg4 {[%clk 0:04:18.4]} 17... Bg6 {[%clk 0:03:43.4]}
18. Bh5 {[%clk 0:04:16]} 18... Qf6 {[%clk 0:03:31.7]} 19. Bxg6 {[%clk
0:04:14.2]} 19... Qxg6 {[%clk 0:03:30.7]} 20. Qg4 {[%clk 0:04:05.2]} 20... Qxg4
{[%clk 0:03:28]} 21. hxg4 {[%clk 0:04:03.9]} 21... b5 {[%clk 0:03:26.9]} 22. Nb3
{[%clk 0:03:59.6]} 22... c4 {[%clk 0:03:24.7]} 23. Nd2 {[%clk 0:03:54.6]} 23...
Ne5 {[%clk 0:03:19.8]} 24. g5 {[%clk 0:03:39.3]} 24... cxd3 {[%clk 0:03:18.1]}
25. cxd3 {[%clk 0:03:39.2]} 25... Nxd3 {[%clk 0:03:17.6]} 26. Rb3 {[%clk
0:03:37.6]} 26... Ne5 {[%clk 0:03:11.4]} 27. Nf3 {[%clk 0:03:34.8]} 27... Nxf3+
{[%clk 0:03:08.4]} 28. gxf3 {[%clk 0:03:34.7]} 28... g6 {[%clk 0:02:39.5]} 29.
Rd1 {[%clk 0:03:26.1]} 29... Re5 {[%clk 0:02:32.8]} 30. f4 {[%clk 0:03:24.2]}
30... Rf5 {[%clk 0:02:31.6]} 31. a4 {[%clk 0:03:20.3]} 31... Kg7 {[%clk
0:02:28.7]} 32. axb5 {[%clk 0:03:18.2]} 32... axb5 {[%clk 0:02:28.4]} 33. Rdb1
{[%clk 0:03:16.8]} 33... d4 {[%clk 0:02:26.1]} 34. Rb4 {[%clk 0:03:14.7]} 34...
dxe3 {[%clk 0:02:24.3]} 35. fxe3 {[%clk 0:03:14.6]} 35... h6 {[%clk 0:02:22.2]}
36. gxh6+ {[%clk 0:03:12.8]} 36... Kxh6 {[%clk 0:02:22.1]} 37. Kf2 {[%clk
0:03:11.8]} 37... Rc5 {[%clk 0:02:19.9]} 38. Kf3 {[%clk 0:03:08.2]} 38... Kg7
{[%clk 0:02:17]} 39. e4 {[%clk 0:03:00.7]} 39... Kf6 {[%clk 0:02:06.6]} 40. Kg4
{[%clk 0:02:58.2]} 40... Kg7 {[%clk 0:01:59.5]} 41. R1b3 {[%clk 0:02:44.8]}
41... Re8 {[%clk 0:01:56.7]} 42. e5 {[%clk 0:02:39.5]} 42... Rb8 {[%clk
0:01:53.8]} 43. Kf3 {[%clk 0:02:33.6]} 43... Rb6 {[%clk 0:01:52.6]} 44. Ke4
{[%clk 0:02:32.2]} 44... Kf8 {[%clk 0:01:50.7]} 45. Kd4 {[%clk 0:02:30.9]} 45...
Rbc6 {[%clk 0:01:47]} 46. Rxb5 {[%clk 0:02:25.7]} 46... Rc4+ {[%clk 0:01:46.2]}
47. Ke3 {[%clk 0:02:25.1]} 47... Kg7 {[%clk 0:01:42.8]} 48. R5b4 {[%clk
0:02:21]} 48... Rc1 {[%clk 0:01:41]} 49. Rb7 {[%clk 0:02:15.4]} 49... R6c3+
{[%clk 0:01:39.1]} 50. Rxc3 {[%clk 0:02:12.2]} 50... Rxc3+ {[%clk 0:01:39]} 51.
Ke4 {[%clk 0:02:10.2]} 51... Rc6 {[%clk 0:01:36.6]} 52. Kd5 {[%clk 0:02:07.2]}
52... Ra6 {[%clk 0:01:35.6]} 53. Ke4 {[%clk 0:02:05.4]} 53... Ra4+ {[%clk
0:01:33.6]} 1/2-1/2

[Event "Live Chess"]
[Site "Chess.com"]
[Date "2024.06.02"]
[Round "-"]
[White "NAZRIZ1977"]
[Black "slava_ukr"]
[Result "1-0"]
[WhiteElo "2111"]
[BlackElo "2335"]
[TimeControl "300"]
[EndTime "5:51:13 PDT"]
[Termination "NAZRIZ1977 won by resignation"]

1. d4 {[%clk 0:04:56.7]} 1... d5 {[%clk 0:04:59.4]} 2. Nc3 {[%clk 0:04:55.1]}
2... Nf6 {[%clk 0:04:58.2]} 3. Bf4 {[%clk 0:04:54.6]} 3... e6 {[%clk 0:04:57.1]}
4. e3 {[%clk 0:04:52.3]} 4... Bd6 {[%clk 0:04:56.7]} 5. Nf3 {[%clk 0:04:51.3]}
5... Nc6 {[%clk 0:04:55]} 6. Bd3 {[%clk 0:04:48.7]} 6... O-O {[%clk 0:04:53.5]}
7. Qe2 {[%clk 0:04:47.3]} 7... Ne7 {[%clk 0:04:50.8]} 8. O-O-O {[%clk
0:04:45.8]} 8... Bxf4 {[%clk 0:04:47.7]} 9. exf4 {[%clk 0:04:44.7]} 9... c6
{[%clk 0:04:47]} 10. Rdg1 {[%clk 0:04:42.1]} 10... b5 {[%clk 0:04:45.2]} 11. g4
{[%clk 0:04:40]} 11... Qa5 {[%clk 0:04:44.2]} 12. g5 {[%clk 0:04:37.3]} 12...
Nh5 {[%clk 0:04:37.2]} 13. Ne5 {[%clk 0:04:23.7]} 13... g6 {[%clk 0:04:34.3]}
14. Ng4 {[%clk 0:04:20.4]} 14... b4 {[%clk 0:04:26.8]} 15. Nb1 {[%clk
0:04:15.1]} 15... Nxf4 {[%clk 0:04:19.8]} 16. Nf6+ {[%clk 0:04:13.6]} 16... Kg7
{[%clk 0:04:19]} 17. Qg4 {[%clk 0:04:11.4]} 17... Nxd3+ {[%clk 0:04:10.8]} 18.
cxd3 {[%clk 0:04:11.3]} 18... h5 {[%clk 0:03:41.6]} 19. Qf4 {[%clk 0:04:05.4]}
19... Nf5 {[%clk 0:02:27.1]} 20. Qe5 {[%clk 0:04:01.4]} 20... Qd8 {[%clk
0:02:13.3]} 21. Nxh5+ {[%clk 0:03:51.6]} 21... Kg8 {[%clk 0:02:12.4]} 22. Nf6+
{[%clk 0:03:49.4]} 22... Kg7 {[%clk 0:02:11.6]} 23. h4 {[%clk 0:03:34.9]} 23...
Qd6 {[%clk 0:02:06.5]} 24. Ne8+ {[%clk 0:03:31.9]} 24... Kg8 {[%clk 0:02:02.6]}
25. Nxd6 {[%clk 0:03:30.8]} 25... Nxd6 {[%clk 0:02:01.7]} 26. h5 {[%clk
0:03:27.1]} 1-0